[Event "FIDE World Rapid Chess Championship 2021"]
[White "Lima, Darcy"]
[Black "Teclaf, Pawel"]
[WhiteFideId "2100045"]
[BlackFideId "1185934"]
[WhiteElo "2505"]
[BlackElo "2345"]
[Result "1/2-1/2"]
[Round "11"]
[TimeControl "900+10"]
[Date "2021.12.28"]
[WhiteClock "0:00:30"]
[BlackClock "0:00:36"]

1. d4 {[%clk 0:15:00]}  e6 {[%clk 0:15:00]} 2. Nf3 {[%clk 0:15:00]}  c5 {[%clk 0:15:00]} 3. g3 {[%clk 0:15:00]}  Qa5+ {[%clk 0:15:00]} 4. Nc3 {[%clk 0:14:55]}  Nf6 {[%clk 0:15:27]} 5. Bg2 {[%clk 0:14:55]}  d5 {[%clk 0:15:27]} 6. O-O {[%clk 0:14:55]}  Nc6 {[%clk 0:15:27]} 7. e4 {[%clk 0:14:59]}  dxe4 {[%clk 0:14:28]} 8. Ne5 {[%clk 0:13:01]}  Nxd4 {[%clk 0:11:25]} 9. Nxe4 {[%clk 0:13:10]}  Qc7 {[%clk 0:11:25]} 10. Nc4 {[%clk 0:13:10]}  Nxe4 {[%clk 0:07:48]} 11. Bxe4 {[%clk 0:11:49]}  Bd7 {[%clk 0:06:36]} 12. Bf4 {[%clk 0:11:57]}  Qc8 {[%clk 0:06:36]} 13. c3 {[%clk 0:11:55]}  Bc6 {[%clk 0:04:31]} 14. Bxc6+ {[%clk 0:11:55]}  Nxc6 {[%clk 0:04:31]} 15. Qh5 {[%clk 0:07:26]}  g6 {[%clk 0:04:45]} 16. Qe2 {[%clk 0:05:58]}  Be7 {[%clk 0:04:45]} 17. Nd6+ {[%clk 0:05:58]}  Bxd6 {[%clk 0:04:45]} 18. Bxd6 {[%clk 0:05:58]}  f6 {[%clk 0:04:45]} 19. Bxc5 {[%clk 0:05:58]}  Kf7 {[%clk 0:04:45]} 20. Rad1 {[%clk 0:05:52]}  Rd8 {[%clk 0:02:11]} 21. Qe4 {[%clk 0:03:44]}  Qc7 {[%clk 0:01:15]} 22. Be3 {[%clk 0:03:44]}  Rxd1 {[%clk 0:01:15]} 23. Rxd1 {[%clk 0:03:44]}  Rd8 {[%clk 0:01:15]} 24. Re1 {[%clk 0:03:44]}  Qe5 {[%clk 0:01:15]} 25. Qh4 {[%clk 0:02:47]}  h5 {[%clk 0:00:57]} 26. Qc4 {[%clk 0:02:47]}  Rd7 {[%clk 0:00:57]} 27. a4 {[%clk 0:02:47]}  Qd5 {[%clk 0:00:57]} 28. Qxd5 {[%clk 0:02:47]}  Rxd5 {[%clk 0:00:57]} 29. Kf1 {[%clk 0:02:47]}  a6 {[%clk 0:00:57]} 30. Ke2 {[%clk 0:02:47]}  e5 {[%clk 0:00:57]} 31. f3 {[%clk 0:02:47]}  Ke6 {[%clk 0:00:57]} 32. b4 {[%clk 0:01:38]}  g5 {[%clk 0:01:04]} 33. h3 {[%clk 0:01:38]}  Ne7 {[%clk 0:01:04]} 34. g4 {[%clk 0:01:38]}  Rd7 {[%clk 0:01:04]} 35. c4 {[%clk 0:00:30]}  Nc6 {[%clk 0:00:36]} 36. b5 {[%clk 0:00:30]}  Nd4+ {[%clk 0:00:36]} 1/2-1/2


[Site "http://www.Chess.com"]

[Event "FIDE World Rapid Chess Championship 2021"]
[White "Bellahcene, Bilel"]
[Black "Nguyen, Thai Dai Van"]
[WhiteFideId "696358"]
[BlackFideId "358878"]
[WhiteElo "2397"]
[BlackElo "2488"]
[Result "1-0"]
[Round "11"]
[TimeControl "900+10"]
[Date "2021.12.28"]
[WhiteClock "0:02:31"]
[BlackClock "0:02:54"]

1. e4 {[%clk 0:15:00]}  e5 {[%clk 0:15:00]} 2. Nc3 {[%clk 0:15:00]}  Nf6 {[%clk 0:15:00]} 3. d4 {[%clk 0:15:00]}  exd4 {[%clk 0:15:00]} 4. Qxd4 {[%clk 0:15:00]}  Nc6 {[%clk 0:15:00]} 5. Qd3 {[%clk 0:15:00]}  d5 {[%clk 0:15:27]} 6. Bf4 {[%clk 0:15:44]}  dxe4 {[%clk 0:12:36]} 7. Qxd8+ {[%clk 0:15:45]}  Nxd8 {[%clk 0:12:36]} 8. Bxc7 {[%clk 0:15:45]}  Ne6 {[%clk 0:12:36]} 9. Be5 {[%clk 0:15:45]}  Ng4 {[%clk 0:10:27]} 10. Bg3 {[%clk 0:15:23]}  f5 {[%clk 0:10:27]} 11. Bb5+ {[%clk 0:15:23]}  Bd7 {[%clk 0:10:27]} 12. Bxd7+ {[%clk 0:15:23]}  Kxd7 {[%clk 0:10:27]} 13. h3 {[%clk 0:13:48]}  Nf6 {[%clk 0:09:41]} 14. O-O-O {[%clk 0:13:48]}  Kc6 {[%clk 0:09:41]} 15. Nge2 {[%clk 0:13:48]}  Bc5 {[%clk 0:09:41]} 16. Na4 {[%clk 0:13:48]}  Be7 {[%clk 0:09:41]} 17. Nd4+ {[%clk 0:13:48]}  Nxd4 {[%clk 0:09:41]} 18. Rxd4 {[%clk 0:13:48]}  b5 {[%clk 0:09:16]} 19. Nc3 {[%clk 0:13:06]}  Bc5 {[%clk 0:09:16]} 20. Ne2 {[%clk 0:13:03]}  Rad8 {[%clk 0:08:09]} 21. Be5 {[%clk 0:13:03]}  Bxd4 {[%clk 0:06:22]} 22. Nxd4+ {[%clk 0:11:19]}  Kd7 {[%clk 0:06:22]} 23. Nxb5 {[%clk 0:11:28]}  Ke6 {[%clk 0:03:51]} 24. Bc3 {[%clk 0:11:28]}  f4 {[%clk 0:03:51]} 25. Re1 {[%clk 0:11:28]}  Rhg8 {[%clk 0:03:21]} 26. Nxa7 {[%clk 0:06:39]}  Ra8 {[%clk 0:03:21]} 27. Nb5 {[%clk 0:06:39]}  Rxa2 {[%clk 0:03:21]} 28. Kb1 {[%clk 0:06:39]}  Raa8 {[%clk 0:03:21]} 29. Nc7+ {[%clk 0:06:39]}  Kf5 {[%clk 0:03:21]} 30. Nxa8 {[%clk 0:06:39]}  Rxa8 {[%clk 0:03:21]} 31. g4+ {[%clk 0:06:39]}  fxg3 {[%clk 0:02:56]} 32. fxg3 {[%clk 0:05:59]}  Nd5 {[%clk 0:02:56]} 33. Bxg7 {[%clk 0:06:06]}  h5 {[%clk 0:02:37]} 34. Bd4 {[%clk 0:06:06]}  Rg8 {[%clk 0:02:39]} 35. Rf1+ {[%clk 0:01:12]}  Ke6 {[%clk 0:02:39]} 36. Re1 {[%clk 0:01:12]}  Kf5 {[%clk 0:02:39]} 37. c4 {[%clk 0:01:12]}  Nb4 {[%clk 0:02:39]} 38. Rf1+ {[%clk 0:01:12]}  Ke6 {[%clk 0:02:39]} 39. Rf4 {[%clk 0:01:12]}  Rxg3 {[%clk 0:02:39]} 40. Rxe4+ {[%clk 0:01:12]}  Kd7 {[%clk 0:03:12]} 41. Bc3 {[%clk 0:00:31]}  Nd3 {[%clk 0:03:12]} 42. h4 {[%clk 0:00:31]}  Nf2 {[%clk 0:03:12]} 43. Re5 {[%clk 0:00:31]}  Rg4 {[%clk 0:00:13]} 44. Rxh5 {[%clk 0:00:27]}  Rxc4 {[%clk 0:00:13]} 45. Rh8 {[%clk 0:00:27]}  Ne4 {[%clk 0:00:13]} 46. Kc2 {[%clk 0:00:27]}  Rc6 {[%clk 0:00:13]} 47. h5 {[%clk 0:00:27]}  Ng5 {[%clk 0:00:13]} 48. Rg8 {[%clk 0:00:27]}  Nf7 {[%clk 0:00:13]} 49. Rg6 {[%clk 0:00:27]}  Rc5 {[%clk 0:00:13]} 50. h6 {[%clk 0:00:27]}  Rh5 {[%clk 0:00:13]} 51. Rg7 {[%clk 0:00:27]}  Ke6 {[%clk 0:00:13]} 52. h7 {[%clk 0:00:27]}  Ne5 {[%clk 0:00:13]} 53. Ra7 {[%clk 0:00:56]}  Rh2+ {[%clk 0:00:25]} 54. Kb3 {[%clk 0:00:56]}  Rh3 {[%clk 0:00:25]} 55. Ka2 {[%clk 0:00:56]}  Nc6 {[%clk 0:00:25]} 56. Ra6 {[%clk 0:00:56]}  Kd5 {[%clk 0:00:25]} 57. Rxc6 {[%clk 0:00:56]}  Rxh7 {[%clk 0:00:25]} 58. Ra6 {[%clk 0:00:56]}  Kc4 {[%clk 0:00:25]} 59. Rd6 {[%clk 0:00:56]}  Ra7+ {[%clk 0:00:25]} 60. Kb1 {[%clk 0:00:56]}  Rh7 {[%clk 0:00:25]} 61. Rd4+ {[%clk 0:00:56]}  Kb5 {[%clk 0:00:25]} 62. Kc2 {[%clk 0:00:56]}  Rh2+ {[%clk 0:00:25]} 63. Rd2 {[%clk 0:00:56]}  Rh5 {[%clk 0:00:25]} 64. Kb3 {[%clk 0:00:56]}  Rf5 {[%clk 0:00:25]} 65. Re2 {[%clk 0:00:56]}  Rf4 {[%clk 0:00:25]} 66. Re5+ {[%clk 0:00:56]}  Kc6 {[%clk 0:00:25]} 67. Rg5 {[%clk 0:00:56]}  Kb6 {[%clk 0:00:25]} 68. Bd2 {[%clk 0:00:56]}  Rh4 {[%clk 0:00:25]} 69. Kc3 {[%clk 0:00:56]}  Kc6 {[%clk 0:00:25]} 70. b4 {[%clk 0:00:56]}  Rh3+ {[%clk 0:00:25]} 71. Kc4 {[%clk 0:00:56]}  Rh4+ {[%clk 0:00:25]} 72. Kb3 {[%clk 0:00:56]}  Kb6 {[%clk 0:00:25]} 73. Be3+ {[%clk 0:00:56]}  Kc6 {[%clk 0:00:25]} 74. b5+ {[%clk 0:00:56]}  Kc7 {[%clk 0:00:25]} 75. Bc5 {[%clk 0:02:31]}  Rh7 {[%clk 0:02:54]} 76. Re5 {[%clk 0:02:31]}  Rh3+ {[%clk 0:02:54]} 77. Re3 {[%clk 0:02:31]}  Rh4 {[%clk 0:02:54]} 78. Re7+ {[%clk 0:02:31]}  Kc8 {[%clk 0:02:54]} 79. Rf7 {[%clk 0:02:31]}  Rh1 {[%clk 0:02:54]} 80. Kc4 {[%clk 0:02:31]}  Rh5 {[%clk 0:02:54]} 81. b6 {[%clk 0:02:31]}  Rh6 {[%clk 0:02:54]} 82. Kb5 {[%clk 0:02:31]} 1-0


[Site "http://www.Chess.com"]

[Event "FIDE World Rapid Chess Championship 2021"]
[White "Szpar, Milosz"]
[Black "Zilka, Stepan"]
[WhiteFideId "1184989"]
[BlackFideId "315303"]
[WhiteElo "2315"]
[BlackElo "2474"]
[Result "1/2-1/2"]
[Round "11"]
[TimeControl "900+10"]
[Date "2021.12.28"]
[WhiteClock "0:02:07"]
[BlackClock "0:10:11"]

1. e4 {[%clk 0:15:00]}  e5 {[%clk 0:15:00]} 2. Nf3 {[%clk 0:15:00]}  Nc6 {[%clk 0:15:00]} 3. Bb5 {[%clk 0:15:00]}  Nf6 {[%clk 0:15:00]} 4. O-O {[%clk 0:15:00]}  Nxe4 {[%clk 0:15:00]} 5. Re1 {[%clk 0:15:05]}  Nd6 {[%clk 0:15:59]} 6. Nxe5 {[%clk 0:15:05]}  Be7 {[%clk 0:15:59]} 7. Bf1 {[%clk 0:15:05]}  Nf5 {[%clk 0:15:59]} 8. Nf3 {[%clk 0:15:05]}  Ncd4 {[%clk 0:15:59]} 9. Nxd4 {[%clk 0:15:05]}  Nxd4 {[%clk 0:15:59]} 10. c3 {[%clk 0:15:05]}  Ne6 {[%clk 0:16:16]} 11. d4 {[%clk 0:12:22]}  d5 {[%clk 0:16:16]} 12. Nd2 {[%clk 0:12:22]}  O-O {[%clk 0:16:16]} 13. Nf3 {[%clk 0:12:22]}  c6 {[%clk 0:16:16]} 14. Bd3 {[%clk 0:12:22]}  Re8 {[%clk 0:16:16]} 15. Ne5 {[%clk 0:12:04]}  Nf8 {[%clk 0:15:25]} 16. Qh5 {[%clk 0:12:04]}  Be6 {[%clk 0:14:27]} 17. Nf3 {[%clk 0:10:15]}  Qd7 {[%clk 0:14:27]} 18. Ng5 {[%clk 0:08:28]}  Bxg5 {[%clk 0:13:32]} 19. Bxg5 {[%clk 0:06:43]}  Bf5 {[%clk 0:13:32]} 20. Bf1 {[%clk 0:06:43]}  Rxe1 {[%clk 0:13:32]} 21. Rxe1 {[%clk 0:06:43]}  Re8 {[%clk 0:13:32]} 22. Rxe8 {[%clk 0:06:43]}  Qxe8 {[%clk 0:13:32]} 23. Qe2 {[%clk 0:06:43]}  Qe6 {[%clk 0:12:29]} 24. Bf4 {[%clk 0:05:32]}  h6 {[%clk 0:12:29]} 25. Bb8 {[%clk 0:05:32]}  a6 {[%clk 0:12:29]} 26. Qxe6 {[%clk 0:05:32]}  Nxe6 {[%clk 0:12:29]} 27. f3 {[%clk 0:04:57]}  Bb1 {[%clk 0:11:15]} 28. a3 {[%clk 0:04:57]}  a5 {[%clk 0:11:15]} 29. Kf2 {[%clk 0:04:57]}  a4 {[%clk 0:11:15]} 30. Ke3 {[%clk 0:04:57]}  b5 {[%clk 0:11:15]} 31. h4 {[%clk 0:04:09]}  g5 {[%clk 0:10:39]} 32. g3 {[%clk 0:04:09]}  f5 {[%clk 0:10:11]} 33. Bh3 {[%clk 0:02:07]}  Kf7 {[%clk 0:10:11]} 34. hxg5 {[%clk 0:02:07]}  hxg5 {[%clk 0:10:11]} 35. Be5 {[%clk 0:02:07]}  Kg6 {[%clk 0:10:11]} 1/2-1/2


[Site "http://www.Chess.com"]

[Event "FIDE World Rapid Chess Championship 2021"]
[White "Wieczorek, Oskar"]
[Black "Janik, Igor"]
[WhiteFideId "1133950"]
[BlackFideId "1159259"]
[WhiteElo "2367"]
[BlackElo "2462"]
[Result "1-0"]
[Round "11"]
[TimeControl "900+10"]
[Date "2021.12.28"]
[WhiteClock "0:01:23"]
[BlackClock "0:01:38"]

1. e4 {[%clk 0:15:00]}  c6 {[%clk 0:15:00]} 2. d4 {[%clk 0:15:00]}  d5 {[%clk 0:15:00]} 3. Nd2 {[%clk 0:15:00]}  dxe4 {[%clk 0:15:00]} 4. Nxe4 {[%clk 0:15:00]}  Bf5 {[%clk 0:15:00]} 5. Ng3 {[%clk 0:15:00]}  Bg6 {[%clk 0:15:00]} 6. c3 {[%clk 0:15:00]}  e6 {[%clk 0:15:00]} 7. Nh3 {[%clk 0:15:00]}  Bd6 {[%clk 0:15:00]} 8. Nf4 {[%clk 0:15:00]}  Qc7 {[%clk 0:15:00]} 9. Qf3 {[%clk 0:15:22]}  Nf6 {[%clk 0:15:55]} 10. h4 {[%clk 0:15:22]}  Nbd7 {[%clk 0:15:55]} 11. h5 {[%clk 0:15:22]}  Bc2 {[%clk 0:15:55]} 12. h6 {[%clk 0:15:22]}  gxh6 {[%clk 0:15:55]} 13. Ngh5 {[%clk 0:15:22]}  Nxh5 {[%clk 0:15:55]} 14. Rxh5 {[%clk 0:15:22]}  e5 {[%clk 0:15:50]} 15. Bd3 {[%clk 0:14:12]}  Bxd3 {[%clk 0:13:43]} 16. Nxd3 {[%clk 0:14:14]}  O-O-O {[%clk 0:13:43]} 17. dxe5 {[%clk 0:14:14]}  Nxe5 {[%clk 0:13:01]} 18. Nxe5 {[%clk 0:12:28]}  Bxe5 {[%clk 0:13:01]} 19. Bxh6 {[%clk 0:12:22]}  f6 {[%clk 0:10:49]} 20. Be3 {[%clk 0:10:57]}  Qa5 {[%clk 0:10:58]} 21. Kf1 {[%clk 0:08:45]}  Qb5+ {[%clk 0:10:14]} 22. Qe2 {[%clk 0:08:45]}  Qa4 {[%clk 0:10:14]} 23. g3 {[%clk 0:08:45]}  Rd7 {[%clk 0:10:19]} 24. Rh4 {[%clk 0:04:34]}  Qa5 {[%clk 0:10:19]} 25. Kg2 {[%clk 0:04:34]}  Rg8 {[%clk 0:10:19]} 26. Qf3 {[%clk 0:04:34]}  Rdg7 {[%clk 0:08:48]} 27. Qf5+ {[%clk 0:01:39]}  Kb8 {[%clk 0:08:43]} 28. Qf3 {[%clk 0:01:39]}  Qb5 {[%clk 0:08:43]} 29. Rb4 {[%clk 0:01:39]}  Qa5 {[%clk 0:08:43]} 30. a4 {[%clk 0:00:50]}  h5 {[%clk 0:07:24]} 31. Rd1 {[%clk 0:00:50]}  Rg4 {[%clk 0:05:10]} 32. Rxg4 {[%clk 0:00:23]}  hxg4 {[%clk 0:05:10]} 33. Qe4 {[%clk 0:00:23]}  Qc7 {[%clk 0:05:10]} 34. Qf5 {[%clk 0:00:23]}  c5 {[%clk 0:05:10]} 35. Qe6 {[%clk 0:00:23]}  Qh7 {[%clk 0:05:10]} 36. Qd5 {[%clk 0:00:23]}  b6 {[%clk 0:03:44]} 37. Rh1 {[%clk 0:00:14]}  Qb7 {[%clk 0:01:30]} 38. Qxb7+ {[%clk 0:00:31]}  Kxb7 {[%clk 0:01:30]} 39. Rh7+ {[%clk 0:00:31]}  Ka6 {[%clk 0:01:30]} 40. Kf1 {[%clk 0:00:31]}  c4 {[%clk 0:01:30]} 41. Ke2 {[%clk 0:00:31]}  Ra8 {[%clk 0:01:30]} 42. Rg7 {[%clk 0:00:31]}  Ka5 {[%clk 0:01:30]} 43. Rxg4 {[%clk 0:00:31]}  Rc8 {[%clk 0:01:30]} 44. Rg7 {[%clk 0:00:31]}  Bb8 {[%clk 0:01:30]} 45. Kd2 {[%clk 0:00:31]}  Kxa4 {[%clk 0:01:30]} 46. Kc2 {[%clk 0:00:31]}  Kb5 {[%clk 0:01:30]} 47. Rf7 {[%clk 0:00:31]}  Rc6 {[%clk 0:01:30]} 48. Bd4 {[%clk 0:00:31]}  Re6 {[%clk 0:01:30]} 49. Kd2 {[%clk 0:00:31]}  Ka4 {[%clk 0:02:08]} 50. Rxf6 {[%clk 0:00:21]}  Re8 {[%clk 0:02:08]} 51. g4 {[%clk 0:00:21]}  Rg8 {[%clk 0:02:08]} 52. f3 {[%clk 0:00:21]}  Kb3 {[%clk 0:02:08]} 53. Rf5 {[%clk 0:00:21]}  Kxb2 {[%clk 0:02:08]} 54. g5 {[%clk 0:00:21]}  Rg6 {[%clk 0:02:08]} 55. Rb5+ {[%clk 0:00:21]}  Ka3 {[%clk 0:02:08]} 56. Ke3 {[%clk 0:00:21]}  Re6+ {[%clk 0:02:08]} 57. Kf2 {[%clk 0:00:21]}  Bf4 {[%clk 0:02:08]} 58. Rf5 {[%clk 0:00:21]}  Bd2 {[%clk 0:02:08]} 59. Rf6 {[%clk 0:00:36]}  Re7 {[%clk 0:02:00]} 60. g6 {[%clk 0:00:36]}  Kb3 {[%clk 0:02:00]} 61. f4 {[%clk 0:00:36]}  Be1+ {[%clk 0:02:00]} 62. Kf3 {[%clk 0:00:36]}  Bxc3 {[%clk 0:02:00]} 63. Bxc3 {[%clk 0:00:36]}  Kxc3 {[%clk 0:02:00]} 64. Rf7 {[%clk 0:00:36]}  Re1 {[%clk 0:02:00]} 65. Kf2 {[%clk 0:00:36]}  Re8 {[%clk 0:02:00]} 66. g7 {[%clk 0:00:36]}  Rg8 {[%clk 0:02:00]} 67. f5 {[%clk 0:00:36]}  Kb2 {[%clk 0:02:00]} 68. f6 {[%clk 0:00:53]}  c3 {[%clk 0:01:40]} 69. Rxa7 {[%clk 0:00:53]}  c2 {[%clk 0:01:40]} 70. Rc7 {[%clk 0:00:53]}  b5 {[%clk 0:01:40]} 71. f7 {[%clk 0:00:53]}  Rxg7 {[%clk 0:01:40]} 72. Rxc2+ {[%clk 0:00:53]}  Kxc2 {[%clk 0:01:40]} 73. f8=Q {[%clk 0:00:53]}  Rg5 {[%clk 0:01:40]} 74. Qb4 {[%clk 0:00:53]}  Kd3 {[%clk 0:01:12]} 75. Qb3+ {[%clk 0:00:30]}  Ke4 {[%clk 0:01:12]} 76. Qe3+ {[%clk 0:00:30]}  Kf5 {[%clk 0:01:12]} 77. Kf3 {[%clk 0:00:30]}  Kf6 {[%clk 0:01:12]} 78. Qb6+ {[%clk 0:00:30]}  Ke7 {[%clk 0:01:12]} 79. Kf4 {[%clk 0:00:30]}  Rd5 {[%clk 0:01:12]} 80. Ke4 {[%clk 0:00:30]}  Rh5 {[%clk 0:01:12]} 81. Qg6 {[%clk 0:00:30]}  Rc5 {[%clk 0:01:12]} 82. Kd4 {[%clk 0:00:30]}  Rc7 {[%clk 0:01:12]} 83. Kd5 {[%clk 0:00:30]}  Kd8 {[%clk 0:01:12]} 84. Qb6 {[%clk 0:00:30]}  Kc8 {[%clk 0:01:12]} 85. Qxb5 {[%clk 0:00:30]}  Rb7 {[%clk 0:01:12]} 86. Qe8+ {[%clk 0:00:30]}  Kc7 {[%clk 0:01:12]} 87. Kc5 {[%clk 0:00:30]}  Ra7 {[%clk 0:01:38]} 88. Qe7+ {[%clk 0:01:23]}  Kb8 {[%clk 0:01:38]} 89. Qd8+ {[%clk 0:01:23]}  Kb7 {[%clk 0:01:38]} 90. Kb5 {[%clk 0:01:23]} 1-0


[Site "http://www.Chess.com"]

[Event "FIDE World Rapid Chess Championship 2021"]
[White "Nevednichy, Vladislav"]
[Black "Dvirnyy, Danyyil"]
[WhiteFideId "1205730"]
[BlackFideId "817570"]
[WhiteElo "2425"]
[BlackElo "2550"]
[Result "1-0"]
[Round "11"]
[TimeControl "900+10"]
[Date "2021.12.28"]
[WhiteClock "0:01:38"]
[BlackClock "0:00:29"]

1. e4 {[%clk 0:15:00]}  e5 {[%clk 0:15:00]} 2. Nf3 {[%clk 0:15:00]}  Nc6 {[%clk 0:15:00]} 3. d3 {[%clk 0:15:00]}  Nf6 {[%clk 0:15:00]} 4. g3 {[%clk 0:15:00]}  d5 {[%clk 0:15:00]} 5. exd5 {[%clk 0:15:00]}  Nxd5 {[%clk 0:15:00]} 6. Bg2 {[%clk 0:15:00]}  g6 {[%clk 0:15:00]} 7. O-O {[%clk 0:15:43]}  Bg7 {[%clk 0:15:36]} 8. Re1 {[%clk 0:15:43]}  O-O {[%clk 0:15:36]} 9. c3 {[%clk 0:15:43]}  h6 {[%clk 0:15:36]} 10. a4 {[%clk 0:15:43]}  a5 {[%clk 0:15:36]} 11. Na3 {[%clk 0:15:45]}  b6 {[%clk 0:12:45]} 12. Nb5 {[%clk 0:15:53]}  Bb7 {[%clk 0:12:45]} 13. Bd2 {[%clk 0:15:53]}  Re8 {[%clk 0:09:03]} 14. Qb3 {[%clk 0:14:34]}  Qd7 {[%clk 0:09:03]} 15. Rad1 {[%clk 0:14:34]}  Rad8 {[%clk 0:09:03]} 16. Bc1 {[%clk 0:14:34]}  Ba8 {[%clk 0:09:03]} 17. Qc4 {[%clk 0:14:34]}  Nde7 {[%clk 0:07:20]} 18. h4 {[%clk 0:14:36]}  Nf5 {[%clk 0:05:43]} 19. Nd2 {[%clk 0:13:17]}  Nd6 {[%clk 0:05:14]} 20. Nxd6 {[%clk 0:13:17]}  cxd6 {[%clk 0:05:14]} 21. Bd5 {[%clk 0:13:17]}  Rc8 {[%clk 0:05:14]} 22. Ne4 {[%clk 0:13:17]}  Nd8 {[%clk 0:04:41]} 23. Qb3 {[%clk 0:07:00]}  Bxd5 {[%clk 0:04:41]} 24. Qxd5 {[%clk 0:07:00]}  Re6 {[%clk 0:02:23]} 25. Be3 {[%clk 0:07:10]}  f5 {[%clk 0:02:23]} 26. Nd2 {[%clk 0:07:10]}  Qc6 {[%clk 0:02:23]} 27. c4 {[%clk 0:07:10]}  Rb8 {[%clk 0:02:23]} 28. Qb5 {[%clk 0:05:20]}  Kh7 {[%clk 0:00:57]} 29. Nb1 {[%clk 0:03:39]}  Qf3 {[%clk 0:00:57]} 30. Qd5 {[%clk 0:03:39]}  Qh5 {[%clk 0:00:57]} 31. Kg2 {[%clk 0:03:39]}  f4 {[%clk 0:00:57]} 32. Bd2 {[%clk 0:03:15]}  Rf6 {[%clk 0:00:00]} 33. Nc3 {[%clk 0:03:15]}  Ne6 {[%clk 0:00:00]} 34. Ne4 {[%clk 0:03:15]}  Rbf8 {[%clk 0:00:00]} 35. Nxf6+ {[%clk 0:03:15]}  Rxf6 {[%clk 0:00:00]} 36. Qf3 {[%clk 0:03:15]}  Qxf3+ {[%clk 0:00:07]} 37. Kxf3 {[%clk 0:01:48]}  fxg3+ {[%clk 0:00:07]} 38. Kxg3 {[%clk 0:01:48]}  Nc5 {[%clk 0:00:07]} 39. Be3 {[%clk 0:01:48]}  Nxa4 {[%clk 0:00:07]} 40. b3 {[%clk 0:01:48]}  Nc5 {[%clk 0:00:07]} 41. Bxc5 {[%clk 0:01:48]}  bxc5 {[%clk 0:00:07]} 42. Ra1 {[%clk 0:01:48]}  Rf4 {[%clk 0:00:07]} 43. Re4 {[%clk 0:01:48]}  Bf6 {[%clk 0:00:07]} 44. Kg2 {[%clk 0:01:48]}  Bxh4 {[%clk 0:00:07]} 45. Rxf4 {[%clk 0:01:48]}  exf4 {[%clk 0:00:07]} 46. Rxa5 {[%clk 0:01:48]}  Bf6 {[%clk 0:00:07]} 47. Ra7+ {[%clk 0:01:48]}  Kg8 {[%clk 0:00:07]} 48. Kf3 {[%clk 0:01:48]}  Be5 {[%clk 0:00:07]} 49. Rd7 {[%clk 0:02:00]}  h5 {[%clk 0:00:43]} 50. d4 {[%clk 0:02:00]}  Bxd4 {[%clk 0:00:43]} 51. Kxf4 {[%clk 0:02:00]}  Bxf2 {[%clk 0:00:43]} 52. Kg5 {[%clk 0:02:00]}  Bg3 {[%clk 0:00:43]} 53. Kxg6 {[%clk 0:02:00]}  Kf8 {[%clk 0:00:43]} 54. Kxh5 {[%clk 0:02:00]}  Ke8 {[%clk 0:00:43]} 55. Rb7 {[%clk 0:02:00]}  Kd8 {[%clk 0:00:43]} 56. Kg4 {[%clk 0:02:00]}  Bh2 {[%clk 0:00:43]} 57. Kf5 {[%clk 0:02:00]}  Kc8 {[%clk 0:00:29]} 58. Rh7 {[%clk 0:01:38]}  Bg3 {[%clk 0:00:29]} 59. Ke4 {[%clk 0:01:38]} 1-0


[Site "http://www.Chess.com"]

[Event "FIDE World Rapid Chess Championship 2021"]
[White "Postny, Evgeny"]
[Black "Sadzikowski, Daniel"]
[WhiteFideId "2804344"]
[BlackFideId "1132253"]
[WhiteElo "2454"]
[BlackElo "2414"]
[Result "1-0"]
[Round "11"]
[TimeControl "900+10"]
[Date "2021.12.28"]
[WhiteClock "0:00:45"]
[BlackClock "0:00:12"]

1. d4 {[%clk 0:15:00]}  Nf6 {[%clk 0:15:00]} 2. Nf3 {[%clk 0:15:00]}  d5 {[%clk 0:15:00]} 3. c4 {[%clk 0:15:00]}  e6 {[%clk 0:15:00]} 4. g3 {[%clk 0:15:00]}  Be7 {[%clk 0:15:00]} 5. Bg2 {[%clk 0:15:00]}  O-O {[%clk 0:15:00]} 6. Qc2 {[%clk 0:15:00]}  Nbd7 {[%clk 0:15:00]} 7. O-O {[%clk 0:15:59]}  c6 {[%clk 0:15:24]} 8. b3 {[%clk 0:15:59]}  b6 {[%clk 0:15:24]} 9. Rd1 {[%clk 0:15:59]}  a5 {[%clk 0:15:24]} 10. Nc3 {[%clk 0:15:59]}  Ba6 {[%clk 0:15:24]} 11. Nd2 {[%clk 0:15:59]}  b5 {[%clk 0:14:34]} 12. e4 {[%clk 0:15:55]}  bxc4 {[%clk 0:14:34]} 13. bxc4 {[%clk 0:15:55]}  dxc4 {[%clk 0:14:34]} 14. Na4 {[%clk 0:15:55]}  c5 {[%clk 0:12:09]} 15. d5 {[%clk 0:15:12]}  exd5 {[%clk 0:09:02]} 16. exd5 {[%clk 0:15:12]}  Ne5 {[%clk 0:09:02]} 17. Bb2 {[%clk 0:15:12]}  Bd6 {[%clk 0:09:02]} 18. Rab1 {[%clk 0:15:09]}  Rb8 {[%clk 0:08:11]} 19. Bxe5 {[%clk 0:15:09]}  Bxe5 {[%clk 0:08:11]} 20. Rxb8 {[%clk 0:12:43]}  Qxb8 {[%clk 0:07:27]} 21. Nxc5 {[%clk 0:12:43]}  Bb5 {[%clk 0:07:27]} 22. Rb1 {[%clk 0:11:21]}  Rc8 {[%clk 0:06:32]} 23. Nce4 {[%clk 0:11:21]}  a4 {[%clk 0:06:33]} 24. Nc3 {[%clk 0:10:22]}  Bxc3 {[%clk 0:03:14]} 25. Qxc3 {[%clk 0:10:22]}  Qb6 {[%clk 0:03:14]} 26. Nf1 {[%clk 0:07:43]}  Ng4 {[%clk 0:02:50]} 27. Rb2 {[%clk 0:05:14]}  a3 {[%clk 0:02:50]} 28. Re2 {[%clk 0:05:14]}  Bd7 {[%clk 0:00:47]} 29. h3 {[%clk 0:04:12]}  Nf6 {[%clk 0:00:47]} 30. Ne3 {[%clk 0:04:12]}  Qc5 {[%clk 0:00:47]} 31. Rd2 {[%clk 0:04:12]}  Qb6 {[%clk 0:00:44]} 32. Rc2 {[%clk 0:02:30]}  Qb1+ {[%clk 0:00:44]} 33. Kh2 {[%clk 0:02:30]}  Ba4 {[%clk 0:00:44]} 34. Rd2 {[%clk 0:02:30]}  h5 {[%clk 0:00:44]} 35. d6 {[%clk 0:02:30]}  Bd7 {[%clk 0:00:16]} 36. Qxa3 {[%clk 0:01:20]}  c3 {[%clk 0:00:16]} 37. Rc2 {[%clk 0:01:20]}  Qe1 {[%clk 0:00:16]} 38. Qc1 {[%clk 0:01:20]}  Qxc1 {[%clk 0:00:16]} 39. Rxc1 {[%clk 0:01:20]}  Ba4 {[%clk 0:00:16]} 40. g4 {[%clk 0:01:20]}  hxg4 {[%clk 0:00:16]} 41. hxg4 {[%clk 0:01:20]}  Kf8 {[%clk 0:00:16]} 42. g5 {[%clk 0:01:20]}  Ne8 {[%clk 0:00:16]} 43. Nd5 {[%clk 0:01:20]}  Bd7 {[%clk 0:00:16]} 44. Nb6 {[%clk 0:00:45]}  Rd8 {[%clk 0:00:12]} 45. Rxc3 {[%clk 0:00:45]}  Nxd6 {[%clk 0:00:12]} 46. Rd3 {[%clk 0:00:45]}  Bf5 {[%clk 0:00:12]} 47. Rd4 {[%clk 0:00:45]}  Ke7 {[%clk 0:00:12]} 48. a4 {[%clk 0:00:45]}  Rh8+ {[%clk 0:00:12]} 49. Kg1 {[%clk 0:00:45]}  Bc8 {[%clk 0:00:12]} 50. a5 {[%clk 0:00:45]}  Ba6 {[%clk 0:00:12]} 51. Nd5+ {[%clk 0:00:45]}  Kd7 {[%clk 0:00:12]} 52. Nb4 {[%clk 0:00:45]}  Bb5 {[%clk 0:00:12]} 53. a6 {[%clk 0:00:45]} 1-0


[Site "http://www.Chess.com"]